bitfinex/quotes_SOLUSD_20251009
["timestamp","ask_amount","ask_price","bid_price","bid_amount"]
[1760036823194,26.0869297,218.02,217.95,0.72]
[1760036823513,4.58656123,218.03,217.96,10.87647521]
[1760036823718,4.58656123,218.03,217.97,0.72]
[1760036826310,3.74045158,218.08,218.01,0.72]
[1760036826509,3.74045158,218.08,218.02,10.87647521]
[1760036826716,0.9,218.14,218.04,10.87647521]
[1760036826907,20.8,218.1,218.05,0.72]
[1760036827105,20.8,218.1,218.06,0.72]
[1760036827428,25.38518758,218.1,218.0,10.87647521]
[1760036827625,25.38518758,218.1,218.01,0.72]
[1760036827813,20.8,218.1,218.01,0.72]
[1760036828207,25.38506306,218.1,218.01,0.72]
[1760036829209,26.08506306,218.1,218.03,10.87647521]
[1760036829833,25.38506306,218.1,218.05,10.87647521]
[1760036830123,25.38506306,218.1,218.06,0.72]
[1760036830627,20.8,218.1,218.06,0.72]
[1760036830830,25.38505914,218.1,218.06,0.72]
[1760036831238,26.08505914,218.1,218.05,10.87647521]
[1760036831611,25.38505914,218.1,218.05,10.87647521]
[1760036831824,26.08505914,218.1,218.05,10.87647521]
[1760036832618,26.08505914,218.1,218.05,11.59647521]
[1760036833318,25.38505914,218.1,218.05,10.87647521]
[1760036833525,25.38505914,218.1,218.05,11.59647521]
[1760036833734,25.38505914,218.1,218.05,10.87647521]
[1760036833943,25.38505914,218.1,218.05,91.89647521]
[1760036834119,26.08505914,218.1,218.05,91.89647521]
[1760036835336,32.96,218.12,218.06,0.72]
[1760036835632,37.54467984,218.12,218.05,80.3]
[1760036835808,0.7,218.11,218.05,80.3]
[1760036836128,0.7,218.1,218.05,80.3]
[1760036836429,0.9761,218.1,218.05,80.3]
[1760036836624,0.7,218.09,218.05,80.3]
[1760036836825,32.26,218.09,218.05,80.3]
[1760036837126,32.96,218.09,218.05,80.3]
[1760036837312,4.58547322,218.08,218.05,80.3]
[1760036838332,4.58547322,218.08,218.05,81.02]
[1760036839131,4.58547322,218.08,218.05,80.3]
[1760036839327,4.58526296,218.09,218.05,80.3]
[1760036839707,0.7,218.08,218.05,80.3]
[1760036840333,4.58526296,218.09,218.05,80.3]
[1760036840634,5.28526296,218.09,218.05,80.3]
[1760036841231,0.7,218.08,218.05,80.3]
[1760036841431,0.7,218.07,218.05,80.3]
[1760036841844,20.8,218.06,218.0,0.72]
[1760036842021,20.8,218.02,217.95,0.72]
[1760036843117,4.58694555,218.01,217.95,0.72]
[1760036843728,4.58694555,218.01,217.9,11.47315282]
[1760036843729,0.7,218.0,217.87,0.1]
[1760036843927,0.7,218.0,217.88,0.72]
[1760036843928,20.8,217.97,217.88,0.72]
[1760036844114,21.5,217.97,217.88,0.72]
[1760036845640,19.11018501,217.96,217.87,0.1]
[1760036845840,32.3,217.95,217.87,0.1]
[1760036846027,33.0,217.95,217.87,0.1]
[1760036846936,4.58841883,217.94,217.87,0.1]
[1760036847260,16.0594659,217.94,217.87,0.1]
[1760036847421,3.7492746,217.93,217.87,0.1]
[1760036848645,7.40415469,217.93,217.87,0.1]
[1760036849148,16.06093979,217.92,217.87,0.1]
[1760036849354,3.0492746,217.91,217.87,0.1]
[1760036849557,32.3,217.9,217.87,0.1]
[1760036850053,0.7,217.89,217.87,0.1]
[1760036850356,32.3,217.9,217.87,0.1]
[1760036850536,32.3,217.9,217.88,0.72]
[1760036850739,5.28778731,217.97,217.89,0.72]
[1760036850939,32.32,217.96,217.89,0.72]
[1760036851152,4.5882083,217.95,217.89,0.72]
[1760036851526,5.2882083,217.95,217.89,0.72]
[1760036852567,4.5882083,217.95,217.89,0.72]
[1760036853052,21.5,217.97,217.89,5.30945653]
[1760036853258,0.69,218.0,217.9,11.53647521]
[1760036853459,32.32,217.99,217.91,0.66]
[1760036853761,32.32,217.98,217.91,0.66]
[1760036854264,32.32,217.98,217.92,4.58883994]
[1760036854635,32.32,217.98,217.92,5.24883994]
[1760036854842,32.32,217.98,217.92,0.66]
[1760036855049,33.01,217.98,217.9,16.1255579]
[1760036855256,0.69,217.97,217.9,0.66]
[1760036856352,4.58799779,217.96,217.88,10.87647521]
[1760036856549,0.69,217.95,217.88,11.53647521]
[1760036857277,4.58780419,217.97,217.89,0.66]
[1760036857647,36.90780419,217.97,217.89,80.96]
[1760036857975,36.90780419,217.97,217.9,0.66]
[1760036858351,32.32,217.97,217.91,4.58905052]
[1760036858578,32.32,217.97,217.92,0.66]
[1760036858788,4.58769586,217.98,217.91,4.58905052]
[1760036859065,36.88769586,217.98,217.93,0.66]
[1760036859951,37.57769586,217.98,217.93,0.66]
[1760036860154,36.88769586,217.98,217.93,0.66]
[1760036860483,37.57769586,217.98,217.91,0.66]
[1760036860653,37.57769586,217.98,217.92,0.66]
[1760036861279,36.88769586,217.98,217.92,0.66]
[1760036861644,4.58739131,217.99,217.92,0.66]
[1760036861846,4.58739131,217.99,217.93,10.87647521]
[1760036861847,32.3,217.99,217.93,10.87647521]
[1760036862186,32.3,217.99,217.94,0.66]
[1760036862391,32.3,217.99,217.95,0.66]
[1760036863184,0.69,218.1,217.97,20.8]
[1760036863489,0.69,218.1,217.98,43.83647521]
[1760036863689,0.69,218.1,218.0,10.87647521]
[1760036863844,0.69,218.09,217.99,0.66]
[1760036864048,3.73059084,218.09,217.97,10.87647521]
[1760036864256,0.69,218.08,217.97,11.53647521]
[1760036864451,0.69,218.07,217.97,15.46407146]
[1760036864659,32.34,218.06,217.98,0.66]
[1760036865955,4.58547322,218.08,218.0,10.87647521]
[1760036865956,32.34,218.07,218.0,10.87647521]
[1760036866159,32.34,218.07,218.01,0.67]
[1760036867159,36.92571947,218.07,218.01,5.25689377]
[1760036867364,37.20181947,218.07,218.01,5.25689377]
[1760036867884,0.2761,218.07,218.01,5.25689377]
[1760036870381,0.2761,218.07,218.01,4.58689377]
[1760036870591,4.86179065,218.07,218.02,0.67]
[1760036870752,0.2761,218.07,218.03,0.67]
[1760036871150,0.2761,218.07,218.04,0.67]
[1760036872151,4.86185052,218.07,218.02,80.97]
[1760036872357,5.56185052,218.07,218.02,80.97]
[1760036872578,5.56185052,218.07,218.02,85.55670985]
[1760036872884,0.2761,218.07,218.02,84.88670985]
[1760036873083,0.2761,218.07,218.03,0.67]
[1760036873290,0.2761,218.07,218.04,0.67]
[1760036874087,0.2761,218.07,218.02,84.88670985]
[1760036874088,0.2761,218.07,218.02,85.55670985]
[1760036874295,0.2761,218.07,218.03,0.67]
[1760036875111,0.2761,218.07,218.04,0.67]
[1760036875312,0.2761,218.07,218.05,0.67]
[1760036875455,0.2761,218.07,218.06,0.67]
[1760036875779,0.2761,218.07,218.05,80.3]
[1760036877998,0.2761,218.07,218.05,80.97]
[1760036879202,4.86184428,218.07,218.05,80.3]
[1760036880077,0.2761,218.07,218.05,80.3]
[1760036880367,37.12178531,218.07,218.05,80.3]
[1760036880683,32.5361,218.07,218.05,80.3]
[1760036880892,32.5361,218.07,218.06,0.67]
[1760036881609,32.5361,218.07,218.06,80.97]
[1760036881983,0.2761,218.07,218.06,80.97]
[1760036882581,0.2761,218.07,218.06,91.84647521]
[1760036882785,0.2761,218.07,218.06,96.432369]
[1760036884611,0.2761,218.07,218.0,0.69]
[1760036884612,0.9461,218.07,218.0,0.69]
[1760036884800,0.2761,218.07,218.01,0.69]
[1760036886183,0.2761,218.07,218.03,10.87647521]
[1760036886501,0.2761,218.07,218.04,0.69]
[1760036886702,0.2761,218.07,218.05,0.69]
[1760036887985,0.2761,218.07,218.06,0.69]
[1760036890497,0.2761,218.07,218.06,80.99]
[1760036900601,0.2761,218.07,218.06,80.3]
[1760036900806,0.2761,218.07,218.06,80.99]
[1760036901606,0.2761,218.07,218.06,80.3]
[1760036901802,5.53178349,218.07,218.06,80.3]
[1760036902416,4.86178349,218.07,218.06,80.3]
[1760036903814,0.2761,218.07,218.06,80.3]
[1760036904423,0.2761,218.07,218.06,80.99]
[1760036904999,0.2761,218.07,218.06,80.3]
[1760036905318,0.2761,218.07,218.06,80.99]
[1760036907512,0.2761,218.07,218.06,85.57589379]
[1760036907826,0.2761,218.07,218.06,96.452369]
[1760036908002,0.2761,218.07,218.06,128.692369]
[1760036908627,0.2761,218.07,218.06,259.592369]
[1760036909623,0.2761,218.07,218.06,280.392369]
[1760036914126,0.88,218.14,218.11,10.87647521]
[1760036914428,0.88,218.14,218.11,90.90037521]
[1760036915226,0.2,218.14,218.11,96.2051283]
[1760036915427,0.2,218.14,218.11,95.4851283]
[1760036916530,0.2,218.14,218.11,90.90037521]
[1760036917440,0.2,218.14,218.11,91.62037521]
[1760036918305,0.2,218.14,218.11,96.20518743]
[1760036918503,0.2,218.14,218.12,0.72]
[1760036919114,0.2,218.14,218.11,95.48518743]
[1760036919309,0.2,218.14,218.12,0.72]
[1760036919635,0.2,218.14,218.11,95.48518743]
[1760036919814,0.2,218.14,218.11,96.20518743]
[1760036920433,0.2,218.14,218.11,95.48518743]
[1760036920639,0.2,218.14,218.11,96.20518743]
[1760036920938,0.2,218.14,218.11,95.48518743]
[1760036921116,0.2,218.14,218.12,0.72]
[1760036921320,0.544,218.14,218.12,0.72]
[1760036921840,0.544,218.14,218.11,95.48518743]
[1760036922138,0.544,218.14,218.11,96.20518743]
[1760036923433,0.544,218.14,218.12,0.72]
[1760036925216,0.544,218.14,218.11,95.48518743]
[1760036925415,0.544,218.14,218.11,96.17518743]
[1760036925842,0.544,218.14,218.11,95.48518743]
[1760036926142,0.544,218.14,218.12,0.69]
[1760036926643,0.544,218.14,218.11,95.48518743]
[1760036926821,0.544,218.14,218.12,0.69]
[1760036928522,0.544,218.14,218.11,95.48518743]
[1760036928717,0.544,218.14,218.12,0.69]
[1760036929231,0.544,218.14,218.11,90.90037521]
[1760036929438,0.544,218.14,218.12,0.69]
[1760036929939,5.12821799,218.14,218.11,90.90037521]
[1760036930119,5.12821799,218.14,218.06,0.69]
[1760036930120,0.7,218.13,218.06,0.69]
[1760036930321,0.7,218.13,218.07,0.69]
[1760036932041,5.28442442,218.13,218.08,4.58547322]
[1760036932249,4.58442442,218.13,218.08,5.27547322]
[1760036932425,0.7,218.12,218.08,5.27547322]
[1760036932952,4.58442442,218.13,218.08,5.27547322]
[1760036933125,5.28442442,218.13,218.08,5.27547322]
[1760036933945,0.7,218.13,218.08,5.27547322]
[1760036934129,0.7,218.12,218.08,5.27547322]
[1760036934330,1.244,218.14,218.08,5.27547322]
[1760036935246,5.82825797,218.14,218.08,5.27547322]
[1760036936953,5.12825797,218.14,218.09,0.69]
[1760036937140,0.544,218.14,218.1,0.69]
[1760036937443,5.8282473,218.14,218.1,0.69]
[1760036940448,0.544,218.14,218.1,0.69]
[1760036940757,0.544,218.14,218.11,11.56647521]
[1760036940957,0.544,218.14,218.13,10.87647521]
[1760036941326,0.544,218.14,218.13,0.69]
[1760036942839,0.544,218.14,218.13,5.27442213]
[1760036946739,0.544,218.14,218.13,96.17479734]
[1760036949070,0.544,218.14,218.13,128.39479734]
[1760036949678,0.2,218.19,218.16,10.87647521]
[1760036949877,0.2,218.19,218.18,10.87647521]
[1760036950245,0.2,218.19,218.18,11.56647521]
[1760036950661,0.2,218.22,218.21,10.87647521]
[1760036950866,0.2,218.22,218.21,63.89647521]
[1760036951069,0.2,218.22,218.21,64.58647521]
[1760036952267,1e-08,218.22,218.21,48.3692166]
[1760036952468,1e-08,218.22,218.21,258.5491166]
[1760036953561,1e-08,218.22,218.21,226.3291166]
[1760036953871,1e-08,218.22,218.21,258.5291166]
[1760036954450,1e-08,218.22,218.21,279.3291166]
[1760036955376,1e-08,218.22,218.21,226.3291166]
[1760036955585,1e-08,218.22,218.21,257.8391166]
[1760036957459,1e-08,218.22,218.21,225.6391166]
[1760036958279,1e-08,218.22,218.21,95.4291166]
[1760036960386,1e-08,218.22,218.21,94.7391166]
[1760036961480,1e-08,218.22,218.21,95.4291166]
[1760036962394,1e-08,218.22,218.21,16.1492166]
[1760036964374,1e-08,218.22,218.21,36.2592166]
[1760036967991,1e-08,218.22,218.21,36.9492166]
[1760036969403,1e-08,218.22,218.21,36.2592166]
[1760036970485,1e-08,218.22,218.21,36.9492166]
[1760036971099,1e-08,218.22,218.21,36.2592166]
[1760036971780,1e-08,218.22,218.21,36.9492166]
[1760036977306,1e-08,218.22,218.21,36.2592166]
[1760036977485,1e-08,218.22,218.21,36.9692166]
[1760036979610,1e-08,218.22,218.21,247.1491166]
[1760036982004,1e-08,218.22,218.21,36.9692166]
[1760036982188,1e-08,218.22,218.21,16.1692166]
[1760036986789,1e-08,218.22,218.21,68.4392166]
[1760036991314,0.68000001,218.22,218.21,47.6392166]
[1760036991719,0.68000001,218.22,218.21,43.05647521]
[1760036992104,0.68000001,218.22,218.21,47.6392166]
[1760036992305,0.68000001,218.22,218.21,15.4592166]
[1760036992501,0.68000001,218.22,218.21,43.05647521]
[1760036992700,0.68000001,218.22,218.21,47.6392166]
[1760036993198,1e-08,218.22,218.21,15.4592166]
[1760036993619,1e-08,218.22,218.21,16.1792166]
[1760036994114,1e-08,218.22,218.21,15.4592166]
[1760036994711,1e-08,218.22,218.21,10.87647521]
[1760036994914,1e-08,218.22,218.21,15.4592166]
[1760036999096,1e-08,218.22,218.21,10.87647521]
[1760036999298,0.68000001,218.22,218.19,47.63960608]
[1760036999618,0.68,218.21,218.19,47.63960608]
[1760036999819,0.68,218.2,218.15,10.87647521]
[1760037000134,0.68,218.19,218.09,14.72693416]
[1760037000312,0.68,218.18,218.1,36.76497929]
[1760037000620,0.68,218.17,218.11,10.87647521]
[1760037000924,0.68,218.16,218.13,10.87647521]
[1760037001118,0.68,218.17,218.13,10.87647521]
[1760037001415,0.68,218.16,218.13,10.87647521]
[1760037001826,0.68,218.15,218.13,10.87647521]
[1760037002024,0.68,218.14,218.13,10.87647521]
[1760037002623,0.67,218.16,218.13,10.87647521]
[1760037002831,0.67,218.19,218.14,0.7]
[1760037003005,0.67,218.21,218.15,5.28400183]
[1760037003317,0.67,218.21,218.15,16.16047704]
[1760037004321,0.67,218.2,218.15,10.87647521]
[1760037004802,0.67,218.19,218.13,10.87647521]
[1760037005006,0.67,218.18,218.13,10.87647521]
[1760037005204,0.67,218.17,218.13,10.87647521]
[1760037005418,0.67,218.19,218.13,11.57647521]
[1760037006215,0.67,218.19,218.13,91.87647521]
[1760037006410,0.67,218.18,218.13,91.17647521]
[1760037006622,0.67,218.17,218.13,91.17647521]
[1760037007837,0.67,218.16,218.12,80.3]
[1760037008012,0.67,218.15,218.13,10.87647521]
[1760037009333,0.67,218.17,218.13,10.87647521]
[1760037009638,4.58339655,218.18,218.13,11.57647521]
[1760037009840,5.25339655,218.18,218.13,11.57647521]
[1760037010720,0.67,218.17,218.13,10.87647521]
[1760037010941,3.0482891,218.21,218.13,10.87647521]
[1760037011132,4.5825314,218.22,218.13,10.87647521]
[1760037011133,3.04828911,218.22,218.15,10.87647521]
[1760037011322,1e-08,218.22,218.17,10.87647521]
[1760037011527,0.67000001,218.22,218.17,11.57647521]
[1760037012213,1e-08,218.22,218.17,91.17647521]
[1760037012432,1e-08,218.22,218.18,0.7]
[1760037013333,0.67000001,218.22,218.17,91.17647521]
[1760037013638,1e-08,218.22,218.18,0.7]
[1760037014518,1e-08,218.22,218.19,11.57647521]
[1760037014719,1e-08,218.22,218.19,91.17647521]
[1760037014931,0.67000001,218.22,218.19,91.17647521]
[1760037016021,1e-08,218.22,218.19,91.17647521]
[1760037016226,0.67000001,218.22,218.19,91.17647521]
[1760037016424,1e-08,218.22,218.19,91.17647521]
[1760037017034,1e-08,218.22,218.19,91.87647521]
[1760037018430,1e-08,218.22,218.19,91.17647521]
[1760037018748,0.67,218.21,218.19,80.3]
[1760037019734,1e-08,218.22,218.19,80.3]
[1760037021233,1e-08,218.22,218.19,81.0]
[1760037021758,1e-08,218.22,218.19,80.3]
[1760037023737,1e-08,218.22,218.2,0.7]
[1760037023937,1e-08,218.22,218.2,80.3]
[1760037025637,0.67,218.21,218.2,80.3]
[1760037026534,0.67,218.21,218.16,80.3]
[1760037026740,0.67,218.2,218.16,80.3]
[1760037026956,0.67,218.19,218.16,80.3]
[1760037027160,0.67,218.18,218.16,80.3]
[1760037027562,3.71985855,218.2,218.16,80.3]
[1760037027761,0.67,218.19,218.16,80.3]
[1760037028769,4.58337152,218.18,218.16,80.3]
[1760037029567,4.58337152,218.18,218.17,0.7]
[1760037029772,4.58316146,218.19,218.16,80.3]
[1760037029955,4.58316146,218.19,218.16,81.0]
[1760037030453,4.58316146,218.19,218.16,80.3]
[1760037030777,16.71106512,218.19,218.16,80.3]
[1760037031268,0.67,218.18,218.16,80.3]
[1760037031448,3.05173109,218.18,218.16,80.3]
[1760037031648,4.58316146,218.19,218.16,80.3]
[1760037031841,32.18,218.21,218.16,80.3]
[1760037031842,7.63522319,218.2,218.16,81.0]
[1760037032046,19.09260174,218.2,218.17,0.7]
[1760037032269,35.23227177,218.19,218.17,0.7]
[1760037032473,32.18,218.19,218.17,0.7]
[1760037033749,11.45737855,218.2,218.18,0.66]
[1760037034272,43.63737855,218.2,218.18,0.66]
[1760037034469,43.63737855,218.2,218.16,80.96]
[1760037034672,43.63737855,218.2,218.17,0.66]
[1760037034966,43.63737855,218.2,218.16,80.3]
[1760037034967,11.45737855,218.2,218.16,80.3]
[1760037035266,11.45737855,218.2,218.16,80.96]
[1760037035267,46.69107612,218.2,218.16,80.96]
[1760037035473,48.22032997,218.2,218.16,80.96]
[1760037036656,48.22032997,218.2,218.16,80.3]
[1760037036860,4.58337152,218.18,218.16,80.3]
[1760037037052,5.30337152,218.18,218.16,80.3]
[1760037037459,4.58337152,218.18,218.16,80.3]
[1760037037874,0.72,218.17,218.13,80.3]
[1760037038070,32.18,218.16,218.13,80.96]
[1760037038977,4.58400183,218.15,218.13,80.96]
[1760037040060,4.58400183,218.15,218.09,91.17647521]
[1760037040260,4.58400183,218.15,218.11,0.66]
[1760037040676,16.04400641,218.15,218.11,0.66]
[1760037041157,3.77551466,218.14,218.08,0.66]
[1760037041575,3.77551466,218.14,218.06,91.83647521]
[1760037041779,0.72,218.13,218.07,0.66]
[1760037041983,32.18,218.12,218.07,0.66]
[1760037042169,32.18,218.12,218.08,0.66]
[1760037042887,0.72,218.11,218.04,80.3]
[1760037043085,16.76768454,218.1,218.03,11.53647521]
[1760037043394,16.76768454,218.1,218.03,0.66]
[1760037044471,3.05308737,218.09,218.03,0.66]
[1760037044679,32.18,218.08,218.03,0.66]
[1760037044869,32.18,218.08,218.04,0.66]
[1760037045075,36.76552275,218.08,218.05,0.66]
[1760037045873,32.18,218.07,218.05,0.66]
[1760037047175,32.18,218.07,218.0,15.4636272]
[1760037047483,32.18,218.07,218.03,0.72]
[1760037047680,0.71,218.06,218.0,0.72]
[1760037048063,32.18,218.07,218.0,0.72]
[1760037048269,4.58589379,218.06,218.0,0.72]
[1760037049087,0.71,218.05,217.99,0.1]
[1760037049666,3.75393317,218.05,217.99,0.1]
[1760037050191,16.05210052,218.04,217.99,0.1]
[1760037050364,32.18,218.03,217.99,0.1]
[1760037050570,32.89,218.03,217.99,0.1]
[1760037050771,0.71,218.02,217.99,0.1]
[1760037051394,0.71,218.01,217.99,0.1]
[1760037051573,20.8,218.0,217.99,0.1]
[1760037051771,21.51,218.0,217.99,0.1]
[1760037053398,26.09715596,218.0,217.99,0.1]
[1760037054491,58.27715596,218.0,217.99,0.1]
[1760037054666,26.09715596,218.0,217.99,0.1]
[1760037054998,58.27715596,218.0,217.99,0.1]
[1760037057884,26.09715596,218.0,217.99,0.1]
[1760037058103,58.29715596,218.0,217.99,0.1]
[1760037060191,26.09715596,218.0,217.99,0.1]
[1760037060398,37.49715596,218.0,217.99,0.1]
[1760037060891,5.29715596,218.0,217.99,0.1]
[1760037061099,37.49715596,218.0,217.99,0.1]
[1760037061494,25.38715596,218.0,217.99,0.1]
[1760037061694,57.58715596,218.0,217.99,0.1]
[1760037066809,58.24715596,218.0,217.99,0.1]
[1760037070416,61.26636025,218.0,217.99,0.1]
[1760037070602,61.26636025,218.0,217.99,1e-08]
[1760037071001,75.04837472,218.0,217.99,1e-08]
[1760037071801,109.75361784,218.0,217.99,1e-08]
[1760037072003,105.92484992,218.0,217.99,1e-08]
[1760037072615,109.75361784,218.0,217.99,1e-08]
[1760037072828,105.92484992,218.0,217.99,1e-08]
[1760037073189,109.75361784,218.0,217.99,1e-08]
[1760037073711,77.55361784,218.0,217.99,1e-08]
[1760037074014,109.75361784,218.0,217.99,1e-08]
[1760037074214,77.55361784,218.0,217.99,1e-08]
[1760037074411,105.92484992,218.0,217.99,1e-08]
[1760037074800,21.38837472,218.0,217.99,1e-08]
[1760037074997,4.58715596,218.0,217.99,0.69000001]
[1760037075221,36.78715596,218.0,217.99,0.69000001]
[1760037076104,25.38715596,218.0,217.99,0.69000001]
[1760037076302,57.58715596,218.0,217.99,0.69000001]
[1760037078327,25.38715596,218.0,217.99,0.69000001]
[1760037078530,57.58715596,218.0,217.99,0.69000001]
[1760037080834,57.58715596,218.0,217.99,1e-08]
[1760037081328,60.61829478,218.0,217.99,1e-08]
[1760037082830,61.27829478,218.0,217.99,1e-08]
[1760037083153,65.1070627,218.0,217.99,1e-08]
[1760037083334,66.94466462,218.0,217.99,1e-08]
[1760037083658,77.82113983,218.0,217.99,1e-08]
[1760037083959,20.8,217.96,217.91,0.1]
[1760037084133,35.23113882,217.95,217.91,0.1]
[1760037084329,3.03113882,217.94,217.91,0.79]
[1760037084653,32.86,217.93,217.91,0.1]
[1760037084961,3.03113882,217.92,217.91,0.1]
[1760037085456,16.40563815,217.92,217.91,1e-08]
[1760037085657,25.38926112,217.9,217.89,1e-08]
[1760037085865,60.62039994,217.9,217.89,1e-08]
[1760037086036,61.28039994,217.9,217.89,1e-08]
[1760037088356,28.42039994,217.9,217.89,1e-08]
[1760037088674,60.62039994,217.9,217.89,1e-08]
[1760037089176,28.42039994,217.9,217.89,1e-08]
[1760037089462,61.28039994,217.9,217.89,1e-08]
[1760037089844,29.08039994,217.9,217.89,1e-08]
[1760037090039,61.28039994,217.9,217.89,1e-08]
[1760037091873,60.62039994,217.9,217.89,1e-08]
[1760037092370,64.41370219,217.9,217.89,1e-08]
[1760037093979,66.2520642,217.9,217.89,1e-08]
[1760037094345,62.45876195,217.9,217.89,1e-08]
[1760037096171,63.17876195,217.9,217.89,1e-08]
[1760037096473,66.9720642,217.9,217.89,1e-08]
[1760037097874,34.0520642,217.9,217.89,1e-08]
[1760037098047,62.45876195,217.9,217.89,1e-08]
[1760037104183,30.25876195,217.9,217.89,0.67000001]
[1760037104386,28.42039994,217.9,217.89,0.67000001]
[1760037104889,60.62039994,217.9,217.89,0.67000001]
[1760037105602,57.58926112,217.9,217.89,0.67000001]
[1760037105786,25.38926112,217.9,217.89,0.67000001]
[1760037105962,32.2,217.9,217.89,0.67000001]
[1760037107189,4.58926112,217.9,217.89,0.67000001]
[1760037107390,36.78926112,217.9,217.89,0.67000001]
[1760037112720,32.2,217.9,217.89,0.67000001]
[1760037113130,4.58862937,217.93,217.89,0.67000001]
[1760037113335,32.2,217.92,217.89,0.67000001]
[1760037113649,32.2,217.91,217.89,0.67000001]
[1760037113821,32.2,217.9,217.89,0.67000001]
[1760037114363,32.2,217.9,217.89,11.54647522]
[1760037117725,4.58765667,217.98,217.89,36.93574638]
[1760037117925,32.2,217.97,217.9,0.66]
[1760037118129,32.2,217.96,217.9,0.66]
[1760037118631,32.2,217.95,217.9,0.66]
[1760037118830,32.2,217.95,217.9,5.24925378]
[1760037119029,32.2,217.95,217.91,0.66]
[1760037119451,32.2,217.95,217.89,31.67647522]
[1760037119654,32.2,217.95,217.92,0.66]
[1760037119957,32.18,217.94,217.92,0.66]
[1760037120155,32.18,217.93,217.89,10.87647522]
[1760037120331,11.4689421,217.98,217.9,10.87647521]
[1760037120540,32.18,217.97,217.92,10.87647521]
[1760037120757,32.18,217.97,217.93,0.66]
[1760037123131,59.78915745,218.01,217.93,0.66]
[1760037123331,3.03879357,218.0,217.93,0.66]
[1760037123650,32.18,217.99,217.93,0.66]
[1760037123852,3.03879357,217.98,217.93,0.66]
[1760037124030,32.18,217.97,217.93,0.66]
[1760037124230,32.18,217.96,217.93,0.66]
[1760037124425,32.18,217.95,217.93,0.66]
[1760037124861,4.58810832,217.96,217.93,0.66]
[1760037125045,32.18,217.95,217.93,80.96]
[1760037125236,32.18,217.95,217.94,0.66]
[1760037125966,4.58694555,218.01,217.94,80.96]
[1760037126130,11.46554374,218.05,217.95,11.53647521]
[1760037126462,36.76631443,218.04,217.97,10.87647521]
[1760037126627,32.18,218.03,217.99,10.87647521]
[1760037126845,32.18,218.03,218.0,0.66]
[1760037127448,36.76659885,218.03,218.0,0.66]
[1760037127772,36.76659885,218.03,218.01,0.66]
[1760037127951,32.18,218.03,218.01,0.66]
[1760037128153,4.58623303,218.05,218.01,0.66]
[1760037128353,32.18,218.04,218.01,0.66]
[1760037128748,4.58564546,218.08,218.02,10.87647521]
[1760037128952,32.18,218.07,218.03,0.66]
[1760037129670,4.58564546,218.08,218.03,0.66]
[1760037129879,32.18,218.06,218.03,0.66]
[1760037130265,4.58505092,218.11,218.04,10.87647521]
[1760037130574,32.18,218.1,218.06,10.87647521]
[1760037130782,32.18,218.1,218.07,0.66]
[1760037131352,32.18,218.1,218.08,0.66]
[1760037131961,32.18,218.1,218.06,0.66]
[1760037132162,4.58463231,218.12,218.07,0.66]
[1760037132367,32.18,218.11,218.08,0.66]
[1760037133382,32.18,218.1,218.05,10.87647521]
[1760037133670,32.18,218.1,218.06,0.66]
[1760037133877,36.76506337,218.1,218.06,0.66]
[1760037134062,4.58506337,218.1,218.06,0.66]
[1760037134243,36.74506337,218.1,218.06,0.66]
[1760037135060,37.40506337,218.1,218.03,10.87647521]
[1760037135273,37.40506337,218.1,218.05,10.87647521]